bitfinex-derivatives/quotes_ETHF0:USTF0_20250411
["timestamp","ask_amount","ask_price","bid_price","bid_amount"]
[1744380811121,3.19642,1565.0,1564.6,3.2078]
[1744380811324,1.27881,1564.7,1564.6,3.2078]
[1744380811624,1.27881,1564.7,1564.6,3.19477983]
[1744380811812,1.28837154,1564.8,1564.6,3.19477983]
[1744380812121,0.00960154,1564.8,1564.6,3.19477983]
[1744380812423,7.338,1566.1,1564.8,6.40454846]
[1744380812613,3.2078,1565.9,1565.2,3.2078]
[1744380812810,1.27824,1565.4,1565.3,10.2731]
[1744380813016,1.27824,1565.4,1565.3,13.4809]
[1744380813212,1.27824,1565.4,1565.3,10.2731]
[1744380813416,1.2784,1565.2,1565.1,0.76091637]
[1744380813721,1.27848,1565.1,1565.0,17.5271]
[1744380813923,1.27844,1565.2,1565.0,10.28270154]
[1744380814118,1.27848,1565.1,1565.0,10.28270154]
[1744380814318,3.19566,1565.4,1565.0,3.21740154]
[1744380814319,3.2078,1565.4,1565.0,3.21740154]
[1744380814521,3.2078,1565.4,1565.0,0.00960154]
[1744380814825,3.2078,1565.4,1565.0,10.28270154]
[1744380815025,1.27848,1565.1,1565.0,0.00960154]
[1744380815722,1.27842,1565.2,1565.0,0.00960154]
[1744380815925,1.27848,1565.1,1565.0,0.00960154]
[1744380816619,4.48628,1565.1,1565.0,0.00960154]
[1744380816819,9.48628,1565.1,1565.0,0.00960154]
[1744380817225,1.27881,1564.7,1564.4,20.8861]
[1744380817428,1.27878,1564.8,1564.6,3.2078]
[1744380817626,1.27879,1564.8,1564.4,17.66527983]
[1744380817827,10.87934,1564.7,1564.4,17.66527983]
[1744380818326,9.61010154,1564.7,1564.5,3.2078]
[1744380818825,10.88891154,1564.7,1564.4,7.26060154]
[1744380819015,9.61010154,1564.7,1564.4,7.26060154]
[1744380819220,1.27897,1564.5,1564.4,0.00960154]
[1744380820628,1.27897,1564.5,1564.4,10.37900154]
[1744380821126,9.61010154,1564.7,1564.4,15.37900154]
[1744380821319,0.00960154,1564.7,1564.6,4.48669]
[1744380821622,3.19484,1565.8,1564.6,13.692]
[1744380821829,3.19521,1565.6,1565.1,3.2078]
[1744380822123,3.19521,1565.6,1564.6,9.845]
[1744380822124,10.2603,1565.5,1565.0,7.251]
[1744380822318,1.27834,1565.3,1565.1,3.2078]
[1744380822523,1.27834,1565.3,1565.2,9.845]
[1744380823627,1.27834,1565.3,1565.2,13.0528]
[1744380823828,1.27834,1565.3,1565.2,9.845]
[1744380824029,0.0062943,1565.4,1565.2,19.33116]
[1744380824229,0.0062943,1565.4,1565.3,8.52832]
[1744380824634,0.0062943,1565.4,1565.3,13.52832]
[1744380825132,0.0062943,1565.4,1565.3,6.27832]
[1744380825323,0.0062943,1565.4,1565.3,13.52832]
[1744380826929,1.27832,1565.3,1565.2,20.3028]
[1744380827430,1.27832,1565.3,1565.0,0.00960154]
[1744380827431,1.27848,1565.1,1565.0,0.00960154]
[1744380827628,1.27848,1565.1,1565.0,10.07490154]
[1744380828330,9.48628,1565.1,1565.0,1.54e-06]
[1744380828625,1.27848,1565.1,1565.0,1.54e-06]
[1744380828830,6.27848,1565.1,1565.0,1.54e-06]
[1744380829030,6.26827997,1565.1,1565.0,1.54e-06]
[1744380829625,9.47607997,1565.1,1565.0,1.54e-06]
[1744380829820,6.26827997,1565.1,1565.0,1.54e-06]
[1744380831125,9.47607997,1565.1,1565.0,1.54e-06]
[1744380832622,23.99857997,1565.1,1565.0,1.54e-06]
[1744380833027,1.27914,1564.3,1564.2,20.4258]
[1744380833232,1.27914,1564.3,1564.2,20.41277983]
[1744380833726,1.2793,1564.1,1564.0,3.2078]
[1744380833931,1.27917,1564.3,1564.0,13.6428]
[1744380834135,0.00960154,1564.2,1564.0,13.6428]
[1744380834530,0.00960154,1564.2,1564.0,18.6428]
[1744380834719,1.28883154,1564.2,1564.0,13.6428]
[1744380834934,1.28884154,1564.2,1564.0,13.6428]
[1744380835126,1.2793,1564.1,1564.0,3.2078]
[1744380835330,1.2793,1564.1,1564.0,13.6428]
[1744380835530,0.00960154,1564.2,1564.0,13.6428]
[1744380835727,0.00960154,1564.2,1564.0,14.92213]
[1744380835931,0.00960154,1564.2,1564.0,14.92214]
[1744380836133,0.00960154,1564.2,1564.1,1.2793]
[1744380836434,0.00960154,1564.2,1564.0,18.6428]
[1744380836829,0.00960154,1564.2,1564.0,13.6428]
[1744380837337,0.00960154,1564.2,1563.9,0.00960154]
[1744380837338,1.27938,1564.0,1563.9,0.00960154]
[1744380838729,11.80787,1564.1,1563.9,0.00960154]
[1744380839031,0.00960154,1564.2,1564.0,3.2078]
[1744380839240,1.28882154,1564.2,1564.1,9.7683]
[1744380839436,0.00960154,1564.2,1564.1,9.7683]
[1744380840339,0.00960154,1564.2,1564.1,11.0476]
[1744380840545,0.00960154,1564.2,1564.1,9.7683]
[1744380841035,1.28882154,1564.2,1564.1,9.7683]
[1744380842426,0.00960154,1564.2,1564.1,9.7683]
[1744380842631,0.00960154,1564.2,1564.1,16.0476]
[1744380842926,1.28882154,1564.2,1564.1,14.7683]
[1744380843131,0.00960154,1564.2,1564.1,9.7683]
[1744380843438,1.28882154,1564.2,1564.1,9.7683]
[1744380843637,1.2793,1564.1,1564.0,3.2078]
[1744380843839,1.27938,1564.0,1563.9,10.03340154]
[1744380844842,1.27931,1564.1,1563.9,10.03340154]
[1744380845041,1.27931,1564.1,1564.0,3.2078]
[1744380845334,1.27938,1564.0,1563.9,0.00960154]
[1744380845536,11.53018,1564.0,1563.9,0.00960154]
[1744380845727,1.27963,1563.7,1563.6,10.0488]
[1744380845928,1.27971,1563.6,1563.5,3.2078]
[1744380846130,1.27987,1563.4,1563.3,10.0488]
[1744380846329,10.2508,1563.5,1563.3,13.2566]
[1744380846639,3.19928,1563.6,1563.2,3.2078]
[1744380846835,4.1302,1563.8,1563.4,3.2078]
[1744380847034,1.28936154,1563.6,1563.4,3.2078]
[1744380847229,0.00960154,1563.6,1563.5,10.0488]
[1744380847430,0.00960154,1563.6,1563.5,11.32859]
[1744380847637,0.00960154,1563.6,1563.5,16.32859]
[1744380847934,10.2508,1564.2,1563.8,1.27952]
[1744380848135,1.2793,1564.1,1564.0,3.2078]
[1744380848336,1.27938,1564.0,1563.9,10.0488]
[1744380848537,1.27936,1564.1,1563.9,13.2566]
[1744380848841,5.227,1564.3,1563.9,13.2566]
[1744380849141,0.00960154,1564.2,1564.0,3.2078]
[1744380849341,1.28886154,1564.2,1564.1,10.352]
[1744380849543,0.00960154,1564.2,1564.1,10.352]
[1744380849739,1.28882154,1564.2,1564.1,10.352]
[1744380850142,1.27938,1564.0,1563.9,13.56940154]
[1744380850342,0.00960154,1564.2,1563.9,14.84884154]
[1744380850544,1.27938,1564.0,1563.9,13.56940154]
[1744380850735,1.27938,1564.0,1563.9,0.00960154]
[1744380851440,6.27938,1564.0,1563.9,0.00960154]
[1744380852641,9.48718,1564.0,1563.9,0.00960154]
[1744380852835,9.48718,1564.0,1563.5,3.2078]
[1744380852836,1.27971,1563.6,1563.5,3.2078]
[1744380853245,9.8321,1563.7,1563.4,3.2078]
[1744380853546,1.27979,1563.5,1563.4,12.731]
[1744380853737,1.27979,1563.5,1563.4,9.5232]
[1744380854043,1.27987,1563.4,1563.3,17.20060314]
[1744380854347,5.40996,1563.6,1563.3,28.00373314]
[1744380854542,5.40991,1563.6,1563.5,3.2078]
[1744380854845,1.27979,1563.5,1563.4,9.9797]
[1744380855035,11.24769,1563.5,1563.4,9.9797]
[1744380855235,1.27987,1563.4,1563.3,3.21740154]
[1744380855432,1.27987,1563.4,1563.3,0.00960154]
[1744380856445,1.27987,1563.4,1563.3,3.21740154]
[1744380856641,1.27987,1563.4,1563.3,0.00960154]
[1744380858439,10.41007,1563.4,1563.3,0.00960154]
[1744380858745,10.41007,1563.4,1563.3,1.54e-06]
[1744380859245,20.49327,1563.4,1563.3,1.54e-06]
[1744380860137,15.49327,1563.4,1563.3,1.54e-06]
[1744380861648,15.49327,1563.4,1563.3,3.20780154]
[1744380861843,5.41007,1563.4,1563.3,3.20780154]
[1744380862035,1.27987,1563.4,1563.3,3.20780154]
[1744380862234,7.32962,1563.6,1563.3,3.20780154]
[1744380862235,1.27985,1563.5,1563.3,3.20780154]
[1744380862538,1.27985,1563.5,1563.4,10.4323]
[1744380863336,12.8677,1563.7,1563.4,10.4323]
[1744380863548,1.27979,1563.5,1563.4,13.6401]
[1744380864851,3.19888,1563.8,1563.4,13.6401]
[1744380865047,3.19912,1563.7,1563.4,13.6401]
[1744380865254,1.27979,1563.5,1563.4,13.6401]
[1744380866248,3.19826,1564.1,1563.7,1.2796]
[1744380866544,1.27987,1563.4,1563.3,3.20780154]
[1744380867149,1.27987,1563.4,1563.3,1.54e-06]
[1744380867543,1.27987,1563.4,1563.3,3.20780154]
[1744380867939,10.94897,1563.4,1563.3,3.20780154]
[1744380868344,1.27987,1563.4,1563.3,3.20780154]
[1744380868744,1.27987,1563.4,1563.3,13.73180154]
[1744380868942,1.27987,1563.4,1563.3,10.52400154]
[1744380869144,1.27987,1563.4,1563.3,1.54e-06]
[1744380869344,10.94897,1563.4,1563.3,1.54e-06]
[1744380869848,10.94897,1563.4,1563.3,3.20780154]
[1744380870049,4.1302,1563.5,1563.3,8.20780154]
[1744380870254,4.1302,1563.5,1563.4,9.9953]
[1744380870846,5.40999,1563.5,1563.4,9.9953]
[1744380871851,4.1302,1563.5,1563.4,11.27517]
[1744380872052,5.40999,1563.5,1563.4,9.9953]
[1744380872252,3.1989,1563.8,1563.4,22.2233]
[1744380872253,4.1302,1563.8,1563.4,22.2233]
[1744380872451,1.27955,1563.8,1563.7,3.2078]
[1744380872952,1.27955,1563.8,1563.7,13.4584]
[1744380876261,1.27987,1563.4,1563.3,3.20780154]
[1744380876451,1.27987,1563.4,1563.3,12.98520154]
[1744380877254,6.39881,1563.6,1563.3,14.26511154]
[1744380877255,1.27978,1563.6,1563.3,14.26511154]
[1744380877454,1.27979,1563.5,1563.4,9.7774]
[1744380877655,1.27977,1563.6,1563.4,9.7774]
[1744380877854,1.27971,1563.6,1563.5,3.2078]
[1744380878957,1.27979,1563.5,1563.4,9.7774]
[1744380879156,4.1302,1563.7,1563.4,9.7774]
[1744380879353,4.1302,1563.7,1563.4,12.9852]
[1744380879354,1.27979,1563.5,1563.4,12.9852]
[1744380879553,1.27979,1563.5,1563.4,3.2078]
[1744380880061,1.27979,1563.5,1563.4,13.6439]
[1744380882659,1.27979,1563.5,1563.4,10.4361]
[1744380883163,1.27979,1563.5,1563.4,13.6439]
[1744380883462,1.27979,1563.5,1563.4,10.4361]
[1744380884261,1.27979,1563.5,1563.4,13.6439]
[1744380884457,1.27979,1563.5,1563.4,3.2078]
[1744380884660,14.2871,1563.7,1563.4,3.2078]
[1744380884967,1.27963,1563.7,1563.6,3.2078]
[1744380885256,1.27963,1563.7,1563.6,4.57516176]
[1744380885463,3.19868,1563.9,1563.6,3.2078]
[1744380885663,1.27954,1563.8,1563.7,9.6565]
[1744380886152,10.93824,1563.8,1563.7,9.6565]
[1744380886461,5.4097,1563.9,1563.7,9.6565]
[1744380886763,5.40973,1563.9,1563.8,3.2078]
[1744380888666,1.27933,1564.1,1563.9,1.27944]
[1744380888955,0.00960154,1564.2,1564.1,1.2793]
[1744380889362,1.28883154,1564.2,1564.0,14.34556]
[1744380889561,0.00960154,1564.2,1564.0,13.0662]
[1744380889863,0.00960154,1564.2,1564.0,14.34552]
[1744380890862,0.00960154,1564.2,1564.1,1.2793]
[1744380891165,0.00960154,1564.2,1564.1,2.0488877]
[1744380892164,0.00960154,1564.2,1564.1,0.7695877]
[1744380892666,1.28884154,1564.2,1564.0,14.34551]
[1744380892963,1.28882154,1564.2,1564.0,14.34551]
[1744380893459,0.00960154,1564.2,1564.1,1.2793]
[1744380894063,0.00960154,1564.2,1564.1,0.768589]
[1744380894759,0.00960154,1564.2,1564.1,2.047889]
[1744380895065,1.28884154,1564.2,1564.0,13.0662]
[1744380895359,0.00960154,1564.2,1564.1,1.2793]
[1744380897663,0.00960154,1564.2,1564.1,6.2793]
[1744380897859,1.27882,1564.7,1564.5,1.27891]
[1744380898067,15.02275,1564.8,1564.6,1.27884]
[1744380898266,0.4430135,1565.1,1564.7,3.2078]
[1744380898577,1.2784,1565.3,1565.1,1.29150017]
[1744380898767,11.81449,1565.4,1565.2,1.27839]
[1744380898966,10.52317983,1565.4,1565.2,10.5196]
[1744380899265,3.20510154,1565.5,1565.1,3.21740154]
[1744380899462,1.2784,1565.2,1565.1,0.00960154]
[1744380899960,6.2784,1565.2,1565.1,0.00960154]
[1744380900356,13.6164,1565.2,1565.1,0.00960154]
[1744380900569,9.1302,1565.2,1564.7,3.2078]
[1744380900769,1.27863,1565.0,1564.7,4.48659]
[1744380900962,4.1302,1565.2,1564.9,3.2078]
[1744380901265,9.9595,1565.3,1564.9,3.2078]
[1744380901565,11.23785,1565.3,1565.0,1.27851]
[1744380901764,4.13980154,1565.5,1565.1,3.2078]
[1744380901970,0.00960154,1565.5,1565.3,4.48604]
[1744380902170,0.00960154,1565.5,1565.4,10.89454]
[1744380902365,1.27824,1565.4,1565.1,3.2078]
[1744380902569,11.32067,1565.4,1565.1,1.27847]
[1744380903067,11.32067,1565.4,1565.2,3.2078]
[1744380903271,1.27832,1565.3,1565.2,3.2078]
[1744380903463,1.27842,1565.2,1565.0,12.8241]
[1744380903663,9.5429,1565.2,1565.0,12.8241]
[1744380903968,10.82133,1565.2,1565.0,12.8241]
[1744380904366,9.5429,1565.2,1565.0,12.8241]
[1744380904556,4.1302,1565.3,1565.0,12.8241]
[1744380904756,0.00960154,1565.5,1565.4,1.27824]
[1744380904962,1.27792,1565.8,1565.5,1.2781]
[1744380905163,1.27799,1565.7,1565.6,12.8023]
[1744380905364,15.93191,1566.0,1565.6,9.5945]
[1744380905570,1.27798,1565.8,1565.6,9.5945]
[1744380905765,9.5429,1565.7,1565.6,14.08037]
[1744380905970,1.27782,1566.0,1565.7,1.27798]
[1744380906173,0.00960154,1565.8,1565.7,1.27798]
[1744380906373,1.28752154,1565.8,1565.6,3.2078]
[1744380906576,0.00960154,1565.8,1565.7,1.27799]
[1744380906874,0.00960154,1565.8,1565.6,4.48583]
[1744380907073,1.28753154,1565.8,1565.6,3.2078]
[1744380907567,0.00960154,1565.8,1565.7,1.27799]
[1744380907961,0.00960154,1565.8,1565.7,6.27799]
[1744380908376,0.00960154,1565.8,1565.7,1.27799]
[1744380908882,0.00960154,1565.8,1565.6,16.76211]
[1744380909177,0.00960154,1565.8,1565.6,10.4088]
[1744380909475,1.27799,1565.7,1565.6,10.4088]
[1744380909665,1.26272417,1565.7,1565.6,3.2078]
[1744380909868,1.27807,1565.6,1565.5,0.00960154]
[1744380910569,6.27807,1565.6,1565.5,0.00960154]
[1744380911472,11.68546154,1565.8,1565.5,0.00960154]
[1744380911666,11.68546154,1565.8,1565.6,3.2078]
[1744380911870,0.00960154,1565.8,1565.6,3.2078]
[1744380912070,0.00960154,1565.8,1565.7,1.27799]
[1744380912671,0.00960154,1565.8,1565.7,2.04692508]
[1744380913280,0.00960154,1565.8,1565.7,1.27799]
[1744380913473,0.00960154,1565.8,1565.7,2.04692508]
[1744380914178,0.00960154,1565.8,1565.7,1.27799]
[1744380914572,0.00960154,1565.8,1565.7,0.76893508]
[1744380914774,0.00960154,1565.8,1565.6,3.2078]
[1744380915075,0.00960154,1565.8,1565.7,1.27799]
[1744380915576,0.00960154,1565.8,1565.6,3.2078]
[1744380915577,1.27799,1565.7,1565.6,3.2078]
[1744380915976,0.00960154,1565.8,1565.7,1.27799]
[1744380916382,1.28751154,1565.8,1565.6,4.48582]
[1744380916580,1.28751154,1565.8,1565.6,3.2078]
[1744380916870,1.28756154,1565.8,1565.6,4.48587]
[1744380917069,1.28756154,1565.8,1565.6,14.10087]
[1744380917280,1.28756154,1565.8,1565.7,1.27799]
[1744380917281,0.00960154,1565.8,1565.7,1.27799]
[1744380917583,0.00960154,1565.8,1565.7,10.89299]
[1744380918283,0.00960154,1565.8,1565.7,11.66192508]
[1744380919177,0.00960154,1565.8,1565.7,15.89299]
[1744380919480,3.19356,1566.4,1565.8,3.19462]
[1744380919678,3.19356,1566.4,1565.7,14.615]
[1744380919679,1.27767,1566.1,1566.0,3.2078]
[1744380919886,1.27787,1565.9,1565.8,10.2419]
[1744380920177,1.27791,1565.8,1565.7,3.2078]
[1744380920371,1.28749154,1565.9,1565.7,4.48579]
[1744380920576,11.36509154,1565.9,1565.8,10.2419]
[1744380920883,10.08720154,1565.9,1565.8,11.51981]
[1744380921084,0.00960154,1565.9,1565.8,10.2419]
[1744380921379,1.27791,1565.8,1565.7,3.2078]
[1744380921576,11.42261,1565.8,1565.5,0.00960154]
[1744380921778,11.42261,1565.8,1565.5,13.07230154]
[1744380921779,1.27807,1565.6,1565.5,13.07230154]
[1744380921984,0.00960154,1565.9,1565.5,16.26766154]
[1744380922173,0.00960154,1565.9,1565.8,3.2078]
[1744380922174,10.15430154,1565.9,1565.8,3.2078]
[1744380922374,10.15430154,1565.9,1565.8,4.48571]
[1744380922375,0.00960154,1565.9,1565.8,4.48571]
[1744380922576,0.00960154,1565.9,1565.8,3.2078]
[1744380922774,0.00960154,1565.9,1565.8,4.48571]
[1744380923181,0.00960154,1565.9,1565.8,3.2078]
[1744380923486,1.28743154,1565.9,1565.8,3.2078]
[1744380923687,0.00960154,1565.9,1565.8,4.48571]
[1744380924981,0.00960154,1565.9,1565.8,9.48571]
[1744380925183,0.00960154,1565.9,1565.8,11.60267971]
[1744380925384,0.00960154,1565.9,1565.8,7.36201325]
[1744380925882,0.00960154,1565.9,1565.8,11.60267971]
[1744380926083,0.00960154,1565.9,1565.8,6.00795805]
[1744380926287,0.00960154,1565.9,1565.8,4.73004805]
[1744380926288,1.28743154,1565.9,1565.8,4.73004805]
[1744380926483,0.00960154,1565.9,1565.8,5.24862451]
[1744380926787,0.00960154,1565.9,1565.8,11.60603469]
[1744380927190,1.27748,1566.4,1566.2,1.27758]
[1744380927493,1.27748,1566.4,1566.3,14.7504]
[1744380927788,1.27748,1566.4,1566.3,13.4729]
[1744380927981,1.27739,1566.5,1566.3,13.4729]
[1744380928191,1.27742,1566.4,1566.3,10.2651]
[1744380928391,1.2775,1566.3,1566.2,0.00960154]
[1744380928588,11.6487,1566.3,1566.2,0.00960154]
[1744380928794,1.27748,1566.4,1566.2,1.28716154]
[1744380929089,10.3712,1566.5,1566.4,1.27742]
[1744380929286,0.00629276,1566.6,1566.3,3.2078]
[1744380929486,1.27742,1566.4,1566.3,3.2078]
[1744380929686,11.6486,1566.5,1566.3,3.2078]
[1744380929888,1.27742,1566.4,1566.3,3.2078]
[1744380930194,11.64859,1566.5,1566.3,3.2078]
[1744380930390,10.3712,1566.5,1566.4,1.27742]
[1744380930587,11.64854,1566.5,1566.4,10.0797]
[1744380930789,0.00629276,1566.6,1566.4,10.0797]
[1744380931089,0.00629276,1566.6,1566.5,4.48514]
[1744380931495,0.00629276,1566.6,1566.5,3.2078]
[1744380931691,1.28355276,1566.6,1566.4,11.35711]
[1744380931892,1.27734,1566.5,1566.4,10.0797]
[1744380932195,3.19336,1566.5,1566.3,3.2078]
[1744380932392,1.2775,1566.3,1566.2,0.00960154]
[1744380932592,1.27775,1566.0,1565.9,3.2078]
[1744380932895,1.27781,1566.0,1565.8,3.2078]
[1744380933099,11.68253,1565.9,1565.8,13.1588016]
[1744380933292,11.68253,1565.9,1565.8,9.9510016]
[1744380933593,16.68253,1565.9,1565.8,9.9510016]
[1744380934193,1.27791,1565.8,1565.7,14.86884744]
[1744380934392,11.27001,1565.8,1565.7,14.86884744]
[1744380934594,19.47781,1565.8,1565.7,1.10854898]
[1744380934796,16.27001,1565.8,1565.7,1.10854898]
[1744380935193,14.9921,1565.8,1565.7,1.10854898]
[1744380935392,9.9921,1565.8,1565.7,1.10854898]
[1744380935696,1.27783,1565.9,1565.7,4.31634898]
[1744380935890,4.787,1566.1,1565.7,1.10854898]
[1744380935891,1.27791,1565.8,1565.7,1.10854898]
[1744380936098,1.27789,1565.9,1565.7,1.10854898]
[1744380936295,11.27001,1565.8,1565.7,1.10854898]
[1744380936694,16.27001,1565.8,1565.7,0.00960154]
[1744380937493,11.27001,1565.8,1565.7,0.00960154]
[1744380937894,16.27001,1565.8,1565.7,0.00960154]
[1744380938308,11.27001,1565.8,1565.7,0.00960154]
[1744380939204,16.27001,1565.8,1565.7,0.00960154]
[1744380940691,3.19499,1565.7,1564.9,3.2078]
[1744380940905,1.27845,1565.2,1564.9,13.0665]
[1744380941205,1.27842,1565.2,1565.1,3.2078]
[1744380941502,9.7654,1565.3,1565.1,3.2078]
[1744380941801,4.1302,1565.8,1565.3,1.27825]
[1744380942004,0.00960154,1565.4,1565.3,1.27832]
[1744380942206,0.00960154,1565.4,1565.3,6.5851345]
[1744380942402,0.00960154,1565.4,1565.3,11.5851345]
[1744380942803,1.27788,1565.9,1565.4,3.19553]
[1744380942998,1.27788,1565.9,1565.8,3.2078]
[1744380943304,14.0245,1566.0,1565.8,3.2078]
[1744380943501,15.30228,1566.0,1565.8,4.48571]
[1744380943705,1.27783,1565.9,1565.6,3.2078]
[1744380944002,0.00960154,1565.9,1565.8,4.48571]
[1744380944204,4.1302,1566.8,1566.4,1.2774]
[1744380944400,1.27704,1566.9,1566.7,3.2078]
[1744380944608,9.8943,1567.0,1566.7,3.2078]
[1744380944906,5.40674,1567.5,1566.9,3.2078]
[1744380945104,9.8943,1567.6,1567.3,3.2078]
[1744380945305,11.17074,1567.6,1567.5,3.2078]
[1744380945508,11.17692658,1567.6,1567.5,3.2078]
[1744380946207,0.00618658,1567.6,1567.4,3.2078]
[1744380947017,1.28263658,1567.6,1567.4,3.2078]
[1744380947511,1.27652,1567.5,1567.4,3.2078]
[1744380947812,1.28268658,1567.6,1567.4,3.2078]
[1744380948010,0.00618658,1567.6,1567.4,3.2078]
[1744380948206,3.2078,1568.5,1567.6,3.19109]
[1744380948514,1.27587,1568.3,1568.2,3.2078]
[1744380948909,5.0,1568.3,1567.8,3.2078]
[1744380949108,1.2762,1567.9,1567.8,3.2078]
[1744380949617,9.5515,1568.2,1567.8,3.2078]
[1744380949816,1.27628,1567.8,1567.7,0.00956968]
[1744380950416,1.27626,1567.9,1567.7,0.00956968]
[1744380950612,1.27626,1567.9,1567.8,3.2078]
[1744380950814,1.27628,1567.8,1567.7,0.00956968]
[1744380951214,5.21,1568.3,1567.7,0.00956968]
[1744380951411,1.27599,1568.2,1568.1,3.2078]
[1744380952322,1.27593,1568.3,1568.1,3.2078]
[1744380952519,3.18908,1568.6,1568.1,3.2078]
[1744380952816,1.27595,1568.2,1568.1,3.2078]
[1744380953418,1.27619,1568.0,1567.9,3.2078]
[1744380953624,1.27628,1567.8,1567.7,10.38836968]
[1744380953919,1.27628,1567.8,1567.7,0.00956968]
[1744380954220,6.27628,1567.8,1567.7,0.00956968]
[1744380954423,9.48408,1567.8,1567.7,0.00956968]
[1744380954619,9.48408,1567.8,1567.7,9.68e-06]
[1744380955124,6.27628,1567.8,1567.7,9.68e-06]
[1744380955418,9.48408,1567.8,1567.7,9.68e-06]
[1744380957822,1.27628,1567.8,1567.7,9.68e-06]
[1744380958221,11.64838,1567.8,1567.7,9.68e-06]
[1744380959314,1.27628,1567.8,1567.7,8.20780968]
[1744380959715,1.27628,1567.8,1567.7,5.00000968]
[1744380960228,1.27628,1567.8,1567.7,8.20780968]
[1744380960422,1.27628,1567.8,1567.7,3.20780968]
[1744380960722,0.00956,1567.9,1567.7,9.48414968]
[1744380960922,0.00956,1567.9,1567.8,11.73638]
[1744380961114,0.00956,1567.9,1567.7,3.20780968]
[1744380961315,1.27628,1567.8,1567.7,3.20780968]
[1744380962020,1.27628,1567.8,1567.7,9.68e-06]
[1744380962434,11.29418,1567.8,1567.7,9.68e-06]
[1744380964027,16.29418,1567.8,1567.7,9.68e-06]
[1744380964419,19.50198,1567.8,1567.7,9.68e-06]
[1744380964616,21.50588,1567.8,1567.7,9.68e-06]
[1744380964819,35.99088,1567.8,1567.7,9.68e-06]
[1744380965019,1.27677,1567.2,1567.1,9.6899]
[1744380965423,1.27709,1566.8,1566.7,9.8574]
[1744380965826,1.27718,1566.7,1566.6,3.2078]
[1744380966230,1.27718,1566.7,1566.6,8.2078]
[1744380966736,1.27718,1566.7,1566.6,17.8977]
[1744380968035,0.00956968,1566.8,1566.6,17.8977]
[1744380968336,0.00956968,1566.8,1566.7,9.5842]
[1744380968826,0.00956968,1566.8,1566.7,14.5842]
[1744380969420,1.28665968,1566.8,1566.7,14.5842]
[1744380969629,1.28665968,1566.8,1566.7,9.5842]
[1744380970226,1.27726,1566.6,1566.5,0.00956968]
[1744380970428,4.48506,1566.6,1566.5,10.20466968]
[1744380970726,3.19385,1566.3,1565.8,3.2078]
[1744380970930,1.27767,1566.1,1566.0,10.1951]
[1744380971731,1.27767,1566.1,1566.0,18.4029]
[1744380972338,1.27767,1566.1,1566.0,13.4029]
[1744380972542,1.27767,1566.1,1566.0,10.1951]
[1744380973742,1.27775,1566.0,1565.9,0.00956968]
[1744380974040,11.20645,1566.0,1565.9,9.68e-06]
[1744380974841,16.20645,1566.0,1565.9,9.68e-06]
[1744380975041,20.99985,1566.0,1565.9,9.68e-06]
[1744380975345,3.19478,1565.8,1565.0,4.8626]
[1744380975540,24.8842,1566.0,1565.3,3.2078]
[1744380975541,13.1365,1565.7,1565.3,3.2078]
[1744380975737,1.27816,1565.5,1565.4,10.2617]
[1744380976037,1.27815,1565.6,1565.4,10.2617]
[1744380976241,1.27816,1565.5,1565.4,10.2617]
[1744380976643,0.00956968,1565.7,1565.4,10.2617]
[1744380976843,1.27814,1565.6,1565.4,10.2617]
[1744380977044,1.2781,1565.6,1565.4,10.2617]
[1744380977244,1.27816,1565.5,1565.4,10.2617]
[1744380978042,0.00956968,1565.7,1565.4,10.2617]
[1744380978345,3.2078,1566.1,1565.6,3.2078]
[1744380978649,3.19383,1566.3,1565.8,3.2078]
[1744380978650,1.27779,1566.0,1565.8,3.2078]
[1744380978844,1.27779,1566.0,1565.9,9.8365]
[1744380979838,11.22029,1566.0,1565.9,9.8365]
[1744380980640,1.27799,1565.7,1565.6,3.2078]
[1744380981341,1.27824,1565.4,1565.3,0.00956968]
[1744380982841,1.27824,1565.4,1565.3,9.68e-06]
[1744380983146,6.27824,1565.4,1565.3,9.68e-06]
[1744380983348,9.48604,1565.4,1565.3,9.68e-06]
[1744380984144,13.61624,1565.4,1565.3,9.68e-06]
[1744380984645,20.02324,1565.4,1565.3,9.68e-06]
[1744380985548,1.27889,1564.6,1564.5,5.12]
[1744380985750,1.27889,1564.6,1564.5,5.10697983]
[1744380986045,1.27897,1564.5,1564.4,3.2078]
[1744380987342,0.00956968,1564.6,1564.4,3.2078]
[1744380987542,1.27897,1564.5,1564.4,3.2078]
[1744380988741,1.27897,1564.5,1564.4,8.2078]
[1744380989044,1.27897,1564.5,1564.4,3.2078]
[1744380991437,1.27905,1564.4,1564.3,0.00956968]
[1744380991644,10.83465,1564.4,1564.3,0.00956968]
[1744380991947,10.83465,1564.4,1564.3,9.68e-06]
[1744380991948,19.96485,1564.4,1564.3,9.68e-06]
[1744380992647,14.96485,1564.4,1564.3,9.68e-06]
[1744380994644,18.17265,1564.4,1564.3,9.68e-06]
[1744380995043,14.96485,1564.4,1564.3,9.68e-06]
[1744380996253,19.96485,1564.4,1564.3,9.68e-06]
[1744380997644,1.27963,1563.7,1563.6,10.2686]
[1744380997954,7.32942,1563.7,1563.3,3.2078]
[1744380998151,1.27971,1563.6,1563.5,3.2078]
[1744380998650,1.27969,1563.7,1563.5,3.2078]
[1744380998846,1.27969,1563.7,1563.6,10.4942]
[1744380998847,1.28925968,1563.7,1563.6,10.4942]
[1744381000048,0.00956968,1563.7,1563.6,10.4942]
[1744381000356,0.00956968,1563.7,1563.6,15.4942]
[1744381000549,0.00956968,1563.7,1563.6,21.97131]
[1744381000949,3.19785,1564.3,1563.6,20.6916]
[1744381001149,1.2793,1564.1,1564.0,3.2078]
[1744381001345,1.27953,1563.9,1563.7,3.2078]
[1744381001642,13.39565,1564.3,1563.7,3.2078]
[1744381001643,1.27954,1563.8,1563.7,3.2078]
[1744381001851,7.338,1564.2,1563.4,3.21736968]
[1744381002050,1.27979,1563.5,1563.4,3.21736968]
[1744381002247,10.20736968,1563.9,1563.4,3.21736968]
[1744381002248,1.27978,1563.6,1563.4,3.21736968]
[1744381002645,1.27979,1563.5,1563.4,0.00956968]